{"text_format":"1","workbook":"xlsx","n_sheets":3,"sheets":["גיליון1","גיליון2","גיליון3"],"not_rendered":{"charts":0,"images":2,"macros":1,"external_links":0,"defined_names":0,"comments":0,"pivot_tables":0},"unopened":[],"bounds":{"document_bytes":16777216,"sheet_cells":100000,"rows_first":2000,"rows_last":500,"rows_between":2000,"halvings":0,"cell_chars":16384,"cell_head_chars":4096},"cells_cut":0,"cells_raw":0,"read":"whole","date_system":"1900"}

{"sheet":"גיליון1","index":0,"n_rows":244,"n_cols":12,"rows_kept":244,"cut":false,"hidden":false,"merged":[[219,0,219,1],[225,0,225,1],[231,0,231,1],[237,0,237,1],[243,0,243,1],[238,0,238,7],[239,0,239,3],[240,0,240,3],[241,0,241,3],[242,0,242,4],[212,0,212,1],[165,0,165,1],[166,0,166,6],[167,0,167,2],[168,0,168,2],[169,0,169,1],[171,0,171,3],[172,0,172,3],[173,0,173,3],[175,0,175,1],[181,0,181,1],[200,0,200,1],[206,0,206,1],[164,0,164,2],[138,0,138,1],[144,0,144,1],[150,0,150,1],[156,0,156,1],[157,0,157,7],[158,0,158,5],[159,0,159,2],[160,0,160,2],[162,0,162,5],[161,0,161,1],[163,0,163,2],[132,0,132,1],[38,0,38,1],[44,0,44,1],[50,0,50,1],[56,0,56,1],[62,0,62,1],[78,0,78,1],[84,0,84,1],[90,0,90,1],[96,0,96,1],[102,0,102,1],[108,0,108,1],[113,0,113,1],[119,0,119,1],[126,0,126,1],[32,0,32,1],[0,0,0,5],[8,0,8,1],[14,0,14,1],[20,0,20,1],[26,0,26,1]]}
["מבחן בנושא - התא",null,null,null,null,null,"שם התלמיד:",null,"כיתה:",null,"ציון",{"$f":"SUM(גיליון2!B2:D34)","v":0}]
[]
[]
["1.       מדוע התא מכונה \"יחידת מבנה בסיסית ביצורים חיים\"?"]
["א.      כי רוב היצורים החיים בנויים מתאים"]
["ב.      כי רוב מאפייני החיים מתקיימים בתוך התא"]
["ג.        כי כל מאפייני החיים מתקיימים בתוך התא *"]
["ד.      כי כל התאים של היצורים החיים מורכבים ממים"]
["הקלד מס' תשובה :"]
["2.       אילו תהליכי חיים מתקיימים בתאים?"]
["א.      גדילה והתרבות בלבד"]
["ב.      נשימה ותזונה בלבד"]
["ג.        קליטה והפרשה בלבד"]
["ד.      כל התהליכים שהוזכרו בתשובות א' עד ג' *"]
["הקלד מס' תשובה :"]
["3.       סמנו את המשפט הנכון מבין המשפטים הבאים:"]
["א. רוב הצמחים בנויים מתאים"]
["ב. רק בעלי חיים בנויים מתאים"]
["ג. רק חיידקים בנויים מתאים"]
["ד. כל היצורים החיים בנויים מתאים *"]
["הקלד מס' תשובה :"]
["4.       מהי היחידה הבסיסית ביותר בגופם של יצורים חיים?"]
["א.   תא *"]
["ב.    עצם"]
["ג.     רקמה"]
["ד.    איבר"]
["הקלד מס' תשובה :"]
["5.       מה הוא הסדר הנכון של רמת ארגון (מהפשוט למורכב ביותר), ביצורים חיים?"]
["א.      תא, רקמה, איבר, אורגניזם (יצור חי) *"]
["ב.      תא, איבר, רקמה, אורגניזם (יצור חי)"]
["ג.        רקמה, תא, איבר, אורגניזם (יצור חי)"]
["ד.      רקמה, איבר, תא, אורגניזם (יצור חי)"]
["הקלד מס' תשובה :"]
["6.       באיזה מבין הסעיפים הבאים מסודרים הרכיבים מהם בנוי התא בסדר עולה (מהקטן לגדול)? "]
["א.      אטומים, אברונים, מולקולות, תא"]
["ב.      מולקולות, אטומים, אברונים, תא"]
["ג.        אטומים, מולקולות, אברונים, תא *"]
["ד.      אברונים, מולקולות, אטומים, תא"]
["הקלד מס' תשובה :"]
["7.       ביצורים חיים יש רקמות. מהי ההגדרה של רקמה?"]
["א.      קבוצת תאים בעלת מבנה ותפקוד דומים *"]
["ב.      קבוצת תאים בעלי מבנה ותפקוד שונים"]
["ג.        קבוצת אברונים המצויה בתוך התא"]
["ד.      קבוצת חומרים הבונה את דפנות התא"]
["הקלד מס' תשובה :"]
["8.       רקמה בגוף חי היא:"]
["א.      קבוצת תאים בעלי תפקיד משותף ומבנה דומה *"]
["ב.      תפירה של חתך בעור שנועדה לזרז ריפוי פצע"]
["ג.        כל קבוצת תאים המחוברים ביניהם"]
["ד.      אוסף תאים מסוגים שונים ומצויים באותו איבר"]
["הקלד מס' תשובה :"]
["9.      קרום התא:"]
["א.      מצוי רק  בתאים של צמחים, דרכו עוברים חומרים שונים."]
["ב.      מצוי רק בתאים של בעלי חיים, דרכו עוברים חומרים שונים באופן בררני"]
["ג.        מצוי בתאי כל היצורים החיים, דרכו עוברים חומרים שונים באופן בררני *"]
["ד.      מצוי רק במצחים ומקנה לתאי הצמחים מבנה קשיח"]
["הקלד מס' תשובה :"]
["10. ציטופלסמה היא: "]
["א.      הנוזל המצוי במרקם החוץ-תאי"]
["ב.      הנוזל המצוי בתוך התא *"]
["ג.        הנוזל המצוי בתוך גרעין התא"]
["ד.      מים הממלאים את התא"]
["הקלד מס' תשובה :"]
["11.    לפניכם איור סכמטי של חתך ברקמת העור באדם."]
[]
[]
[]
[]
[]
[]
[]
[]
[]
["מהו האברון המסומן באות א'?"]
["א.    גרעין *"]
["ב.    מיטוכונדריה"]
["ג.      קרום"]
["ד.    חלולית"]
["הקלד מס' תשובה :"]
["12.   מדענים גילו רעל המעכב פעילות מיטוכונדריה בתאים. מה יקרה כאשר יחדירו רעל זה לתוך התאים? "]
["א.        הרעל יפגע בתהליך יצור המזון (פוטוסינתזה) בצמח"]
["ב.          הרעל יפגע תהליך יצירת האנרגיה בתא  *"]
["ג.          הרעל יפגע בתאים אך לא ישפיע ברמת היצור השלם "]
["ד.         הרעל יפגע ביכולת קליטת מים בתאי הצמח"]
["הקלד מס' תשובה :"]
["13.   חוקר מצא תא חי שאינו מסוגל להתחלק , להתרבות וליצור חלבונים. החוקר לא מצא בתאיו: "]
["א.  ציטופלסמה"]
["ב.  קרום תא"]
["ג.   גרעין *"]
["ד.  מיטוכונדריה"]
["הקלד מס' תשובה :"]
["14.   מדענים מנסים ליצור תאי דם אדומים מלאכותיים. איזו יכולת חייבת להיות לתאים אלה?  "]
["א.   יכולת לתקוף פולשים זרים שחדרו לגוף"]
["ב.   יכולת להוביל חמצן *"]
["ג.     יכולת להעביר הורמונים ומומסים אחרים"]
["ד.   יכולת לייצר נוגדנים"]
["הקלד מס' תשובה :"]
["15.   מהו התפקיד העיקרי של תאי הדם האדומים?  "]
["א. להילחם במחלות בגוף"]
["ב.להעביר חמצן לכל חלקי הגוף *"]
["ג. להוציא פחמן חד חמצני מכל חלקי הגוף"]
["ד.לייצר חומרים הגורמים לקרישת דם"]
["הקלד מס' תשובה :"]
["16.   מחסור בתאי דם אדומים יפגע קודם כל ב: "]
["א.      במערכת החיסון"]
["ב.      במערכת הדם בורידים"]
["ג.        באספקת החמצן לתאים *"]
["ד.      בויסות חום הגוף"]
["הקלד מס' תשובה :"]
["17.   צורות התאים היא: "]
["א.      כולם שטוחים (דו ממדיים)"]
["ב.      כולם תלת- ממדיים *"]
["ג.        חלקם שטוחים (דו ממדיים) וחלקם תלת ממדיים "]
["הקלד מס' תשובה :"]
["18. במה שונים תאי שריר מתאי עור של אותו יצור? "]
["א.      בכמות החומר התורשתי שלהם"]
["ב.      במבנה הבסיסי שלהם"]
["ג.        בתהליך החלוקה שלהם"]
["ד.      בתפקידם ובצורתם *"]
["הקלד מס' תשובה :"]
["19.   דינה טוענת כי התאים החיים שונים זה מזה בצורתם ובכך מותאמים לתפקודם,"]
[" עדי טוענת כי לכל התאים צורה זהה. מי מהבנות צודקת? "]
["                      א.   עדי"]
["                      ב.   דינה *"]
["                       ג.    שתיהן צודקות"]
["                      ד.   שתיהן טועות"]
["הקלד מס' תשובה :"]
["20.   מהו התפקיד העיקרי של כלורופלסטים בתאי הצמחים? "]
["א.   לקלוט אנרגיית אור ולייצר מזון *"]
["ב.  לסלק חומרי פסולת ע\"י הובלה פעילה"]
["ג.    לייצר אנרגיה כימית ממזון"]
["ד.לבנות את הצורה המרחבית של התא"]
["הקלד מס' תשובה :"]
["21.   איזה מבין המרכיבים הבאים אינו נמצא בכל סוגי התאים? "]
["א.      קרום התא"]
["ב.      דופן התא *"]
["ג.        ציטופלסמה (נוזל התא)"]
["ד.      חומר תורשתי (ד.נ.א)"]
["הקלד מס' תשובה :"]
["22.   בתאי כבד ובתאי עלים בתחילת הלבלוב מוצאים מספר גדול של מיטוכונדריה. מה הסיבה לכך?"]
["א.    בכבד ובעלים המצויים בתחילת לבלוב מתרחשים תהליכי גדילה וחילוף חומרים נמרצים הצורכים אנרגיה רבה. *"]
["ב.    בכבד ובעלים מתרחשים תהליכי גדילה הדורשים חלבונים רבים"]
["ג.      בכבד ובעלים יש הרבה מיטוכונדריה על מנת כיוון שיש צורך בפירוק שומנים"]
["ד.    אין סיבה מיוחדת לכך."]
["הקלד מס' תשובה :"]
["23.   ציין אברון שנמצא בתאי צמחים ותופס את מרבית נפח התא אך אינו נמצא באופן זה בתאים של בעל חיים. "]
["א.   גרעין"]
["ב.   קרום"]
["ג.     ציטופלסמה"]
["ד.   חלולית *"]
["הקלד מס' תשובה :"]
["24.   מחלה נדירה עלולה לפגוע בכלורופלסטים של תאי הצמח. מה לדעתכם יקרה לצמח? "]
["א.    הוא  לא יוכל לקלוט אנרגיית אור ולייצר מזון *"]
["ב.    הוא לא יוכל לסלק חומרי פסולת ע\"י הובלה פעילה"]
["ג.     הוא לא יוכל לייצר אנרגיה כימית ממזון"]
["ד.    הוא לא יוכל לבנות את הצורה המרחבית של התא"]
["הקלד מס' תשובה :"]
[]
["לתאי צמחים יש דופן ואין קרום תא"]
["א. נכון"]
["ב. לא נכון *"]
["הקלד מס' תשובה :"]
[" בצמח נבול החלולית איבדה את רוב המים"]
["נכון"]
["ב. לא נכון"]
["הקלד מס' תשובה :"]
["     בתאים צמחיים הגרעין מצוי במרכז התא בתוך החלולית"]
["א. נכון"]
["ב. לא נכון *"]
["הקלד מס' תשובה :"]
["26.   אצל חלק מהצמחים הגדלים בקרבת החוף ישנה הצטברות של מלחים בתוך התאים.הצטברות זו גורמת ל: "]
["א.      איבוד מים מתאי הצמח"]
["ב.      הצטברות של מים בתאי הצמח *"]
["ג.        התפוצצות תאי הצמח"]
["ד.   הרס האברונים"]
["הקלד מס' תשובה :"]
["27.   לאחר אכילת כמות גדולה של גרעיני חמניות מלוחים, עשויה להיות תחושת חספוס בצד הפנימי של השפתיים ובלשון. מה יכולה להיות הסיבה לכך: "]
["א.      המלח חדר לתאי השפה והלשון, והתאים התנפחו"]
["ב.      מלחים יצאו מתאי השפה והלשון, והתאים התכווצו *"]
["ג.        מים חדרו לתאי השפה והלשון, והתאים התנפחו"]
["ד.      מים יצאו מתאי השפה והלשון, והתאים התכווצו"]
["הקלד מס' תשובה :"]
["28.   לפניך שני ציורים של אותו תא בצמח: לפני שהצמח עבר טיפול (ציור א) ואחרי שהצמח עברטיפול (ציור ב). "]
[]
[]
[]
[]
[]
[]
[]
[]
[]
[]
[]
[]
["מהו שם האברון שעליו מצביע חץ 1?"]
["א       ציטופלזמה"]
["ב       מיטוכונדריה"]
["ג      חלולית"]
["ד       דופן התא *"]
["הקלד מס' תשובה :"]
["מהו שם האברון שעליו מצביע חץ 2?"]
["א       ציטופלזמה *"]
["ב       מיטוכונדריה"]
["ג      חלולית"]
["ד       דופן התא "]
["הקלד מס' תשובה :"]
["מהו שם האברון שעליו מצביע חץ 3?"]
["א       ציטופלזמה "]
["ב       מיטוכונדריה"]
["ג      חלולית *"]
["ד       דופן התא "]
["הקלד מס' תשובה :"]
["29.   בגינה של דני גדלות חרציות, בצהריים דני יצא מהבית וראה שהפרחים כמשו (נבלו) כאשר חזר הביתה לאחר זמן מה ראה שהכמישה חלפה והפרחים חזרו להיות יפים וזקופים."]
["מדוע הכמישה חלפה? "]
["א.      השורשים התארכו והצמח התייצב באדמה"]
["ב.      הצמח ספג חומרי דישון מהאדמה"]
["ג.        אוויר חדר לגבעול וחיזק אותו"]
["ד.      הצמח הושקה ותאיו התמלאו שוב מים *"]
["הקלד מס' תשובה :"]
["30.   מה יקרה אם נשים תא צמח במים מזוקקים? "]
["א.      התא יתנפח עד שיתפוצץ"]
["ב.      נפח התא לא ישתנה"]
["ג.        תוכן התא יתנפח עד שהדופן תעצור אותו *"]
["ד.      מים לא יכולים להיכנס לתוך תא צמח"]
["הקלד מס' תשובה :"]
["31.    אם נטבול תאי צמח ותאי בעלי חיים במים מזוקקים, מים יחדרו לשני סוגי התאים וכתוצאה מכך: "]
["א.      תאים מבעלי חיים יתפוצצו ותאים מצמחים לא יתפוצצו *"]
["ב.      תאים מבעלי חיים לא יתפוצצו ותאים מצמחים יתפוצצו"]
["ג.        תאים מבעלי חיים ותאים מצמחים לא יתפוצצו"]
["ד.      תאים מבעלי חיים ותאים מצמחים יתפוצצו"]
["הקלד מס' תשובה :"]
["32.   איזה אברון יימצא בתאי רקמת שריר בכמות גדולה, יחסית לכמות אותו אברון בתאי רקמת השומן? "]
["א.      קרום התא"]
["ב.      גרעין"]
["ג.        מיטוכונדריה*"]
["ד.      כלורופלסטים"]
["הקלד מס' תשובה :"]
["33. מחלה נדירה המשנה את מבנה הכלורופלסטים תפגע באותו צמח ב: "]
["א. יצירת חלבוני התא"]
["ב. עיכול חומרים בתאים"]
["ג. יצירת האנרגיה בתאים"]
["ד. יצירת סוכרים מ- 2 CO ומים *"]
["הקלד מס' תשובה :"]

{"sheet":"גיליון2","index":1,"n_rows":34,"n_cols":4,"rows_kept":34,"cut":false,"hidden":false,"merged":[[0,2,0,5]]}
[null,"ניקוד","ניקוד משנה"]
[1,{"$f":"IF(גיליון1!C9=\"ג\",3,0)","v":0}]
[2,{"$f":"IF(גיליון1!C15=\"ד\",3,0)","v":0}]
[3,{"$f":"IF(גיליון1!C21=\"ד\",3,0)","v":0}]
[4,{"$f":"IF(גיליון1!C27=\"א\",3,0)","v":0}]
[5,{"$f":"IF(גיליון1!C33=\"א\",3,0)","v":0}]
[6,{"$f":"IF(גיליון1!C39=\"ג\",3,0)","v":0}]
[7,{"$f":"IF(גיליון1!C45=\"א\",3,0)","v":0}]
[8,{"$f":"IF(גיליון1!C51=\"א\",3,0)","v":0}]
[9,{"$f":"IF(גיליון1!C57=\"ג\",3,0)","v":0}]
[10,{"$f":"IF(גיליון1!C63=\"ב\",3,0)","v":0}]
[11,{"$f":"IF(גיליון1!C79=\"א\",4,0)","v":0}]
[12,{"$f":"IF(גיליון1!C85=\"ב\",3,0)","v":0}]
[13,{"$f":"IF(גיליון1!C91=\"ג\",3,0)","v":0}]
[14,{"$f":"IF(גיליון1!C97=\"ב\",3,0)","v":0}]
[15,{"$f":"IF(גיליון1!C103=\"ב\",3,0)","v":0}]
[16,{"$f":"IF(גיליון1!C109=\"ג\",3,0)","v":0}]
[17,{"$f":"IF(גיליון1!C114=\"ב\",3,0)","v":0}]
[18,{"$f":"IF(גיליון1!C120=\"ד\",3,0)","v":0}]
[19,{"$f":"IF(גיליון1!C127=\"ב\",3,0)","v":0}]
[20,{"$f":"IF(גיליון1!C133=\"א\",3,0)","v":0}]
[21,{"$f":"IF(גיליון1!C139=\"ב\",3,0)","v":0}]
[22,{"$f":"IF(גיליון1!C145=\"א\",3,0)","v":0}]
[23,{"$f":"IF(גיליון1!C151=\"ד\",3,0)","v":0}]
[24,{"$f":"IF(גיליון1!C157=\"א\",3,0)","v":0}]
[25,{"$f":"IF(גיליון1!C162=\"ב\",1,0)","v":0},{"$f":"IF(גיליון1!C166=\"א\",1,0)","v":0},{"$f":"IF(גיליון1!C170=\"ב\",1,0)","v":0}]
[26,{"$f":"IF(גיליון1!C176=\"ב\",3,0)","v":0}]
[27,{"$f":"IF(גיליון1!C182=\"ב\",3,0)","v":0}]
[28,{"$f":"IF(גיליון1!C201=\"ד\",1,0)","v":0},{"$f":"IF(גיליון1!C207=\"א\",1,0)","v":0},{"$f":"IF(גיליון1!C213=\"ג\",1,0)","v":0}]
[29,{"$f":"IF(גיליון1!C220=\"ד\",3,0)","v":0}]
[30,{"$f":"IF(גיליון1!C226=\"ג\",3,0)","v":0}]
[31,{"$f":"IF(גיליון1!C232=\"א\",3,0)","v":0}]
[32,{"$f":"IF(גיליון1!C238=\"ג\",3,0)","v":0}]
[33,{"$f":"IF(גיליון1!C244=\"ד\",3,0)","v":0}]

{"sheet":"גיליון3","index":2,"n_rows":0,"n_cols":0,"rows_kept":0,"cut":false,"hidden":false,"merged":[]}